[Event "WYCC 2018 O16"]
[Site "Halkidiki"]
[Date "2018.10.24"]
[Round "6"]
[White "Baenziger, Fabian"]
[Black "Loiacono, Leonardo"]
[Result "1/2-1/2"]
[ECO "A06"]
[WhiteElo "2355"]
[BlackElo "2277"]
[Annotator "NA"]
[PlyCount "61"]
[EventDate "2018.10.20"]
[EventType "swiss"]
[EventCountry "GRE"]
[SourceTitle "playchess.com"]
[Source "ChessBase"]
[SourceQuality "1"]
[TimeControl "40/5400+30:1800+30"]

1. Nf3 {[%emt 0:00:00]} d5 {[%emt 0:00:00]} 2. g3 {[%emt 0:00:00]} Bg4 {[%emt 0:00:00]} 3. Bg2 {[%emt 0:00:00]} c6 {[%emt 0:01:34]} 4. c4 {[%emt 0:00:32]} e6 {[%emt 0:02:21]} 5. cxd5 {[%emt 0:00:44]} Bxf3 {[%emt 0:01:26]} 6. Bxf3 {[%emt 0:00:06]} cxd5 {[%emt 0:00:07]} 7. O-O {[%emt 0:00:38]} Nc6 {[%emt 0:00:37]} 8. d3 {[%emt 0:00:18]} Nf6 {[%emt 0:00:43]} 9. Nc3 {[%emt 0:00:07]} Be7 {[%emt 0:01:42]} 10. Bg2 {[%emt 0:02:00] A11: English Opening: 1...c6} O-O {[%emt 0:02:29]} 11. a3 {[%emt 0:00:44]} Rc8 {[%emt 0:04:12]} 12. Bd2 {[%emt 0:01:22]} Nd7 {[%emt 0:13:11]} 13. b4 {[%emt 0:02:08] [#]} a5 $146 {[%emt 0:05:06]} ({Predecessor:} 13... Bg5 14. Bxg5 Qxg5 15. Rc1 Qf6 16. e4 dxe4 17. Nxe4 Qe7 {½-½ (75) Benjamin,J (2555)-Morovic Fernandez,I (2565) Buenos Aires 1992}) 14. Na2 {[%emt 0:13:50]} Ra8 {[%emt 0:07:38]} 15. b5 {[%emt 0:06:35]} Nd4 {[%emt 0:01:34]} 16. a4 {[%emt 0:00:20]} Nc5 {[%emt 0:03:02]} 17. Nc1 {[%emt 0:05:22]} Bf6 {[%emt 0:04:43]} 18. Ra2 {[%emt 0:00:20]} e5 {[%emt 0:00:50]} 19. e3 {[%emt 0:03:08]} Nde6 {[%emt 0:01:33]} 20. Nb3 {[%emt 0:17:01]} b6 {[%emt 0:05:15]} 21. Bc1 {[%emt 0:03:07]} Rc8 {[%emt 0:01:41]} 22. Nxc5 {[%emt 0:01:48]} Nxc5 {[%emt 0:00:09]} 23. Ba3 {[%emt 0:00:09]} d4 {[%emt 0:05:52]} 24. e4 {[%emt 0:02:42]} Be7 {[%emt 0:02:54]} 25. f4 {[%emt 0:00:38]} Nd7 {[%emt 0:00:56]} 26. Bxe7 {[%emt 0:02:23]} Qxe7 {[%emt 0:00:05]} 27. Bh3 {[%emt 0:00:22]} Rc7 {[%emt 0:02:46]} 28. Bxd7 {[%emt 0:01:38]} Rxd7 {[%emt 0:00:39] [#]} 29. Rc2 {[%emt 0:00:13]} (29. f5 $1 $16) 29... exf4 {[%emt 0:02:12]} 30. gxf4 $11 {[%emt 0:00:47]} Rc7 {[%emt 0:01:19]} 31. Rg2 {[%emt 0:01:30]} 1/2-1/2

[Event "WYCC 2018 O16"]
[Site "Halkidiki"]
[Date "2018.10.24"]
[Round "6"]
[White "Petriashvili, Nikoloz"]
[Black "Kaasen, Tor Fredrik"]
[Result "1-0"]
[ECO "E07"]
[WhiteElo "2343"]
[BlackElo "2388"]
[Annotator "NA"]
[PlyCount "115"]
[EventDate "2018.10.20"]
[EventType "swiss"]
[EventCountry "GRE"]
[SourceTitle "playchess.com"]
[Source "ChessBase"]
[SourceQuality "1"]
[TimeControl "40/5400+30:1800+30"]

1. d4 {[%emt 0:00:00]} Nf6 {[%emt 0:00:03]} 2. Nf3 {[%emt 0:00:00]} e6 {[%emt 0:00:07]} 3. g3 {[%emt 0:01:38]} d5 {[%emt 0:01:28]} 4. Bg2 {[%emt 0:00:11]} Be7 {[%emt 0:01:46]} 5. O-O {[%emt 0:00:09]} O-O {[%emt 0:00:15]} 6. c4 {[%emt 0:06:28]} Nbd7 {[%emt 0:01:19]} 7. Nbd2 {[%emt 0:07:11]} b6 {[%emt 0:02:19]} 8. b3 {[%emt 0:00:18]} Bb7 {[%emt 0:01:20]} 9. Bb2 {[%emt 0:00:16]} c5 {[%emt 0:03:54] LiveBook: 64 Games} 10. Rc1 {[%emt 0:00:36]} Rc8 {[%emt 0:01:17]} 11. e3 {[%emt 0:05:31]} cxd4 {[%emt 0:03:15]} 12. Nxd4 {[%emt 0:00:07]} Nc5 {[%emt 0:00:51] E17: Damenindisch (Hauptfortsetzung)} 13. Qe2 {[%emt 0:03:19]} Qd7 {[%emt 0:06:20]} 14. cxd5 {[%emt 0:06:05]} Bxd5 $146 {[%emt 0:00:47]} ({Vorgänger:} 14... Ba6 15. dxe6 fxe6 16. Nc4 e5 17. Nf3 Qd3 18. Qe1 Qf5 19. Nfxe5 Ng4 20. Nxg4 Qxg4 21. Qd1 Qg6 22. Qd5+ Kh8 23. Ne5 Qf5 24. g4 Qg5 25. f4 Qh4 26. Nf7+ Rxf7 27. Qxf7 {1-0 (27) Martirosyan,H (2131)-Visveshwar,A (1870) Al Ain 2013}) 15. Nc4 {[%emt 0:03:52]} Bxg2 {[%emt 0:03:00]} 16. Kxg2 {[%emt 0:00:02]} b5 {[%emt 0:03:18]} 17. Ne5 {[%emt 0:05:37]} Qd5+ {[%emt 0:00:44]} 18. Ndf3 {[%emt 0:00:04]} Nce4 {[%emt 0:01:05]} 19. Rfd1 {[%emt 0:02:04]} Qb7 {[%emt 0:00:18]} 20. Kg1 {[%emt 0:00:12]} b4 {[%emt 0:06:41]} 21. Nd2 {[%emt 0:07:43]} Rfd8 {[%emt 0:10:53]} 22. Rxc8 {[%emt 0:04:10]} Rxc8 {[%emt 0:03:38]} 23. Nxe4 {[%emt 0:00:31]} Qxe4 {[%emt 0:00:16]} 24. Nc4 {[%emt 0:01:27]} Qc6 {[%emt 0:04:36]} 25. Bxf6 {[%emt 0:03:04]} Bxf6 {[%emt 0:00:45]} 26. Rd6 {[%emt 0:00:10]} Qb7 {[%emt 0:02:20]} 27. Qd3 {[%emt 0:00:18]} h6 {[%emt 0:02:54]} 28. e4 {[%emt 0:01:13]} Rc7 {[%emt 0:06:14]} 29. Qe2 {[%emt 0:10:12]} Rd7 {[%emt 0:06:02]} 30. Rxd7 {[%emt 0:02:46]} Qxd7 {[%emt 0:00:05]} 31. Kg2 {[%emt 0:00:47]} Bc3 {[%emt 0:01:35]} 32. h4 {[%emt 0:00:53]} g6 {[%emt 0:04:18]} 33. h5 {[%emt 0:03:47]} g5 {[%emt 0:04:44]} 34. e5 {[%emt 0:03:18]} Qd5+ {[%emt 0:02:37]} 35. Qf3 {[%emt 0:00:21]} Bd4 {[%emt 0:01:58]} 36. Qxd5 {[%emt 0:04:43]} exd5 {[%emt 0:00:14]} 37. Nd6 {[%emt 0:00:01]} Bxe5 {[%emt 0:07:40]} 38. Nf5 {[%emt 0:00:06]} Kf8 {[%emt 0:04:46]} 39. Kf3 {[%emt 0:00:13]} Ke8 {[%emt 0:00:34]} 40. g4 {[%emt 0:00:00]} Kd7 {[%emt 0:00:00]} 41. Nxh6 {[%emt 0:00:36]} Ke6 {[%emt 0:01:02]} 42. Nf5 {[%emt 0:00:13]} Bh8 {[%emt 0:02:49]} 43. Ke3 {[%emt 0:00:43]} a6 {[%emt 0:01:15]} 44. Nd4+ {[%emt 0:00:09]} Kd6 {[%emt 0:04:12]} 45. Nf3 {[%emt 0:01:27]} Bf6 {[%emt 0:00:05]} 46. Kd3 {[%emt 0:00:03]} Ke7 {[%emt 0:01:50]} 47. Ke2 {[%emt 0:00:10]} Kf8 {[%emt 0:02:12]} 48. Ke3 {[%emt 0:00:18]} Ke8 $18 {[%emt 0:03:44]} 49. Kd3 {[%emt 0:00:13]} Ke7 {[%emt 0:00:20]} 50. h6 {[%emt 0:05:26]} Kf8 {[%emt 0:01:03]} 51. Nd4 {[%emt 0:00:02]} Be5 {[%emt 0:06:30]} 52. Nc6 {[%emt 0:04:03]} Bc3 {[%emt 0:00:34]} 53. a4 {[%emt 0:01:21]} Kg8 {[%emt 0:01:54]} 54. Nb8 {[%emt 0:00:05]} a5 {[%emt 0:00:53]} 55. Nc6 {[%emt 0:00:03]} Kh7 {[%emt 0:01:39]} 56. Nxa5 {[%emt 0:00:08]} Kxh6 {[%emt 0:01:44]} 57. Nc6 {[%emt 0:00:07]} Be1 {[%emt 0:00:39]} 58. Ke2 {[%emt 0:00:06]} 1-0

[Event "WYCC 2018 O16"]
[Site "Halkidiki"]
[Date "2018.10.24"]
[Round "6"]
[White "Guerra Rivera, Salvador"]
[Black "Juksta, Karolis"]
[Result "1/2-1/2"]
[ECO "C07"]
[WhiteElo "2340"]
[BlackElo "2234"]
[Annotator "NA"]
[PlyCount "119"]
[EventDate "2018.10.20"]
[EventType "swiss"]
[EventCountry "GRE"]
[SourceTitle "playchess.com"]
[Source "ChessBase"]
[SourceQuality "1"]
[TimeControl "40/5400+30:1800+30"]

1. e4 {[%emt 0:00:00]} e6 {[%emt 0:00:00]} 2. d4 {[%emt 0:00:00]} d5 {[%emt 0:00:00]} 3. Nd2 {[%emt 0:00:33]} c5 {[%emt 0:00:00]} 4. Ngf3 {[%emt 0:00:35]} Nf6 {[%emt 0:00:00]} 5. exd5 {[%emt 0:00:14]} exd5 {[%emt 0:00:05]} 6. Bb5+ {[%emt 0:00:53]} Bd7 {[%emt 0:00:09]} 7. Qe2+ {[%emt 0:00:49]} Be7 {[%emt 0:01:01]} 8. dxc5 {[%emt 0:04:28]} O-O {[%emt 0:00:24]} 9. O-O {[%emt 0:01:44]} Re8 {[%emt 0:03:47]} 10. Nb3 {[%emt 0:11:42] LiveBook: 42 Games} Bxc5 {[%emt 0:05:21]} 11. Qd3 {[%emt 0:00:10]} Bxb5 {[%emt 0:02:44]} 12. Qxb5 {[%emt 0:00:13]} Bb6 {[%emt 0:00:07]} 13. Bg5 {[%emt 0:02:23]} Nbd7 {[%emt 0:00:20]} 14. Rad1 {[%emt 0:01:54]} Qc7 {[%emt 0:01:14]} 15. c3 {[%emt 0:02:33]} Re4 {[%emt 0:15:13]} 16. Nbd4 {[%emt 0:10:26]} Rae8 {[%emt 0:01:23]} 17. Bh4 {[%emt 0:05:30]} a6 {[%emt 0:28:30]} 18. Qb3 {[%emt 0:04:40]} h6 {[%emt 0:04:53]} 19. Bg3 {[%emt 0:05:38]} Qd8 {[%emt 0:01:57]} 20. Rd2 {[%emt 0:04:16]} Nc5 {[%emt 0:04:36]} 21. Qd1 {[%emt 0:00:48]} Bc7 {[%emt 0:03:00]} 22. Nf5 {[%emt 0:03:27]} Bxg3 {[%emt 0:04:37]} 23. Nxg3 {[%emt 0:00:34]} R4e7 {[%emt 0:00:30]} 24. Nf5 {[%emt 0:01:41]} Rd7 {[%emt 0:00:09]} 25. N3d4 {[%emt 0:00:27]} Kh7 {[%emt 0:06:06]} 26. Re2 {[%emt 0:10:34]} g6 {[%emt 0:01:31]} 27. Rxe8 {[%emt 0:02:01]} Qxe8 {[%emt 0:01:49]} 28. Re1 {[%emt 0:02:56]} Qd8 {[%emt 0:00:57]} 29. Ne3 {[%emt 0:02:17]} Qb6 {[%emt 0:00:18]} 30. Qc2 {[%emt 0:07:17]} Ne6 {[%emt 0:05:02]} 31. Rd1 {[%emt 0:03:16]} Qd6 {[%emt 0:03:13]} 32. Qe2 {[%emt 0:02:42]} Ne4 {[%emt 0:02:38]} 33. f3 {[%emt 0:05:38]} Nf4 {[%emt 0:01:19]} 34. Qe1 {[%emt 0:01:04]} Ng5 {[%emt 0:00:58]} 35. h4 {[%emt 0:03:04]} Nge6 {[%emt 0:02:29]} 36. g3 {[%emt 0:00:07]} Nh5 {[%emt 0:00:11]} 37. f4 {[%emt 0:01:19]} Re7 {[%emt 0:01:02]} 38. Qf2 {[%emt 0:00:34]} Nc5 {[%emt 0:00:30]} 39. Qf3 {[%emt 0:00:22]} Ne4 {[%emt 0:00:41]} 40. Ne2 {[%emt 0:00:00]} Qb6 {[%emt 0:00:00]} 41. Rd4 {[%emt 0:07:37]} Nd2 {[%emt 0:11:04]} 42. Qf2 {[%emt 0:05:36]} Qxb2 {[%emt 0:03:02]} 43. Nxd5 {[%emt 0:05:34]} Nf3+ {[%emt 0:04:30]} 44. Qxf3 {[%emt 0:00:07]} Rxe2 {[%emt 0:01:09]} 45. Rd1 {[%emt 0:00:06]} Qc2 {[%emt 0:04:10]} 46. Rf1 {[%emt 0:01:04]} Qd2 {[%emt 0:02:16]} 47. g4 {[%emt 0:06:18]} Ng3 {[%emt 0:02:33]} 48. Nf6+ $17 {[%emt 0:01:33]} Kg7 {[%emt 0:00:12]} 49. Qxg3 {[%emt 0:01:01]} Kxf6 {[%emt 0:00:01]} 50. g5+ {[%emt 0:00:17]} Kg7 {[%emt 0:05:00]} 51. f5 {[%emt 0:02:26]} hxg5 {[%emt 0:01:17]} 52. f6+ {[%emt 0:01:13]} Kh7 {[%emt 0:00:06]} 53. hxg5 {[%emt 0:00:07]} Qe3+ {[%emt 0:01:09]} 54. Qxe3 {[%emt 0:00:03]} Rxe3 {[%emt 0:00:06]} 55. Rd1 {[%emt 0:00:02]} Rxc3 {[%emt 0:01:14]} 56. Rd7 {[%emt 0:00:09]} Kg8 {[%emt 0:00:31]} 57. Rd8+ {[%emt 0:00:15]} Kh7 {[%emt 0:00:01]} 58. Rd7 {[%emt 0:00:04]} Kg8 {[%emt 0:00:07]} 59. Rd8+ {[%emt 0:00:04]} Kh7 {[%emt 0:00:04]} 60. Rd7 {[%emt 0:00:03]} 1/2-1/2

[Event "WYCC 2018 O16"]
[Site "Halkidiki"]
[Date "2018.10.24"]
[Round "6"]
[White "Olsen, Filip Boe"]
[Black "Gabizon, Eyal"]
[Result "1-0"]
[ECO "E71"]
[WhiteElo "2335"]
[BlackElo "2205"]
[Annotator "NA"]
[PlyCount "67"]
[EventDate "2018.10.20"]
[EventType "swiss"]
[EventCountry "GRE"]
[SourceTitle "playchess.com"]
[Source "ChessBase"]
[SourceQuality "1"]
[TimeControl "40/5400+30:1800+30"]

1. d4 {[%emt 0:00:00]} Nf6 {[%emt 0:00:00]} 2. c4 {[%emt 0:00:00]} g6 {[%emt 0:00:00]} 3. Nc3 {[%emt 0:00:00]} Bg7 {[%emt 0:00:00]} 4. e4 {[%emt 0:00:01]} d6 {[%emt 0:00:00]} 5. h3 {[%emt 0:00:12]} O-O {[%emt 0:00:00]} 6. Be3 {[%emt 0:00:07] LiveBook: 788 Games} e5 {[%emt 0:00:34]} 7. d5 {[%emt 0:00:18]} a5 {[%emt 0:01:24]} 8. g4 {[%emt 0:00:31] E71: King's Indian: 4 e4 d6 5 h3} Na6 {[%emt 0:02:34]} 9. Nge2 {[%emt 0:00:15]} Nd7 {[%emt 0:01:36]} (9... c6 10. Ng3 Nc5 11. g5 Nfd7 12. h4 cxd5 13. Nxd5 Nb6 14. Nc3 Be6 15. b3 a4 {1-0 (36) Ding,L (2777)-Amonatov,F (2636) Riadh 2017}) 10. Qd2 {[%emt 0:02:33]} Nac5 {[%emt 0:03:33]} 11. Ng3 {[%emt 0:02:08]} Nb6 $146 {[%emt 0:06:11]} ({Predecessor:} 11... Qe7 12. Nb5 Nf6 13. Bg2 Rd8 14. O-O-O Ne8 15. g5 {½-½ (40) Kijatkin,A-Paushkin,N Bor 2000}) 12. Be2 {[%emt 0:03:10]} f5 {[%emt 0:04:09]} (12... c6 $16 {might work better.}) 13. gxf5 {[%emt 0:00:41]} gxf5 {[%emt 0:00:06]} 14. Nxf5 {[%emt 0:02:13]} Nxe4 {[%emt 0:09:07]} 15. Nxe4 {[%emt 0:00:46]} Bxf5 {[%emt 0:00:13]} 16. Ng3 {[%emt 0:00:20]} Qh4 {[%emt 0:12:59]} 17. Rc1 {[%emt 0:21:45]} Bg6 $14 {[%emt 0:19:50]} 18. Bg4 {[%emt 0:05:06]} h6 {[%emt 0:02:28]} 19. c5 {[%emt 0:09:50]} dxc5 {[%emt 0:07:07]} 20. Rxc5 {[%emt 0:02:02]} Qe7 {[%emt 0:06:54]} 21. Qc1 {[%emt 0:01:27]} Qd6 {[%emt 0:02:18]} 22. Be6+ {[%emt 0:01:47]} Kh7 {[%emt 0:02:06]} 23. h4 {[%emt 0:12:41]} c6 {[%emt 0:07:59]} 24. h5 {[%emt 0:01:01]} Bd3 {[%emt 0:00:28]} 25. Qd2 {[%emt 0:02:06]} Bb1 {[%emt 0:02:06]} 26. Qd1 {[%emt 0:01:30]} Bxa2 {[%emt 0:00:34]} 27. Nf5 {[%emt 0:00:42]} Qd8 {[%emt 0:02:40]} 28. Rg1 {[%emt 0:05:22]} Rxf5 {[%emt 0:00:51]} 29. Bxf5+ {[%emt 0:00:05]} Kh8 {[%emt 0:00:04]} 30. Qg4 {[%emt 0:00:40]} Qf6 {[%emt 0:01:03]} 31. dxc6 {[%emt 0:00:29]} bxc6 {[%emt 0:00:48]} 32. Rxc6 {[%emt 0:00:21]} Qf8 {[%emt 0:00:31]} 33. Rxb6 {[%emt 0:00:30]} Bg8 {[%emt 0:00:49]} 34. Bxh6 {[%emt 0:00:48]} 1-0

[Event "WYCC 2018 O16"]
[Site "Halkidiki"]
[Date "2018.10.24"]
[Round "6"]
[White "Zhalmakhanov, Ramazan"]
[Black "Wang, Yanbin"]
[Result "1-0"]
[ECO "B61"]
[WhiteElo "2316"]
[BlackElo "2220"]
[Annotator "NA"]
[PlyCount "101"]
[EventDate "2018.10.20"]
[EventType "swiss"]
[EventCountry "GRE"]
[SourceTitle "playchess.com"]
[Source "ChessBase"]
[SourceQuality "1"]
[TimeControl "40/5400+30:1800+30"]

1. e4 {[%emt 0:00:00]} c5 {[%emt 0:00:00]} 2. Nf3 {[%emt 0:00:00]} Nc6 {[%emt 0:00:05]} 3. d4 {[%emt 0:00:20]} cxd4 {[%emt 0:00:04]} 4. Nxd4 {[%emt 0:00:10]} Nf6 {[%emt 0:01:01]} 5. Nc3 {[%emt 0:00:09]} d6 {[%emt 0:00:05]} 6. Bg5 {[%emt 0:00:26]} Bd7 {[%emt 0:00:42]} 7. Qd2 {[%emt 0:00:27]} Nxd4 {[%emt 0:04:47]} 8. Qxd4 {[%emt 0:00:10]} Qa5 {[%emt 0:00:32]} 9. Bd2 {[%emt 0:03:45]} Qc7 {[%emt 0:03:32] B61: Sizilianisch (Richter/Rauser-Angriff)} (9... e5 10. Qc4 Qb6 11. Be3 Qc6 12. Qb3 a6 13. Bc4 Be6 14. Bxe6 fxe6 15. Qxe6+ Be7 16. O-O-O Qd7 17. Qb3 {1-0 (50) Almasi,Z (2726)-El Gindy,E (2510) Khanty-Mansiysk 2011}) 10. f3 {[%emt 0:06:59]} a6 {[%emt 0:03:06]} 11. O-O-O $146 {[%emt 0:11:20]} ({Vorgänger:} 11. g4 e5 12. Qc4 Qxc4 13. Bxc4 Rc8 14. Bb3 Be6 15. O-O-O Be7 16. Kb1 Nd7 17. h4 {0-1 (50) Orak,L (2338)-Bylino,O (2186) Pula 2001}) 11... Rc8 {[%emt 0:03:44]} 12. g4 {[%emt 0:09:30]} e5 {[%emt 0:00:48]} 13. Qf2 {[%emt 0:02:14]} h6 {[%emt 0:10:05]} 14. Be3 {[%emt 0:01:53]} Be6 {[%emt 0:00:27]} 15. Kb1 {[%emt 0:01:41]} Be7 {[%emt 0:04:46]} 16. Nd5 {[%emt 0:08:06]} Bxd5 {[%emt 0:01:16]} 17. exd5 {[%emt 0:00:06]} Nd7 {[%emt 0:00:41]} 18. h4 {[%emt 0:03:10]} Bf6 {[%emt 0:07:54]} 19. Bd3 {[%emt 0:04:46]} g6 {[%emt 0:03:40]} 20. h5 {[%emt 0:11:50]} g5 {[%emt 0:00:32]} 21. Bf5 {[%emt 0:00:07]} b5 {[%emt 0:05:53]} 22. Rd3 {[%emt 0:07:33]} Qb7 {[%emt 0:00:17]} 23. Qd2 {[%emt 0:01:08]} Rc7 {[%emt 0:03:33]} 24. Rc3 {[%emt 0:02:20]} Nb6 {[%emt 0:06:26]} 25. Rxc7 {[%emt 0:03:33]} Qxc7 {[%emt 0:00:03]} 26. b3 {[%emt 0:01:59]} O-O {[%emt 0:03:05]} 27. Rd1 {[%emt 0:00:31]} Rb8 {[%emt 0:04:08]} 28. Qa5 {[%emt 0:02:20]} Qb7 {[%emt 0:01:11]} 29. Be4 {[%emt 0:05:28]} Bd8 {[%emt 0:07:43]} 30. Qb4 {[%emt 0:00:11]} Bc7 {[%emt 0:08:50]} 31. Qc3 {[%emt 0:02:48]} Nc8 {[%emt 0:02:48]} 32. f4 {[%emt 0:02:10]} b4 {[%emt 0:04:25]} 33. Qb2 {[%emt 0:00:01]} Bb6 {[%emt 0:00:49]} 34. Bxb6 {[%emt 0:01:04]} Qxb6 {[%emt 0:00:04]} 35. fxe5 {[%emt 0:01:10]} Qe3 {[%emt 0:00:28]} 36. Bf5 {[%emt 0:00:24]} Qe2 {[%emt 0:02:01]} 37. Qc1 {[%emt 0:01:26]} dxe5 {[%emt 0:04:42]} 38. d6 {[%emt 0:00:18]} Na7 {[%emt 0:02:07]} 39. d7 {[%emt 0:00:36]} Rd8 {[%emt 0:00:24]} 40. Rd2 {[%emt 0:00:00]} Qf3 {[%emt 0:00:00]} 41. Rd3 {[%emt 0:05:21]} Qf4 {[%emt 0:12:08]} 42. Qg1 {[%emt 0:03:29]} Nc6 {[%emt 0:09:37]} 43. Qb6 {[%emt 0:04:07]} e4 {[%emt 0:00:14]} 44. Rd1 {[%emt 0:01:23]} Qf3 {[%emt 0:07:53]} 45. Re1 {[%emt 0:00:32]} Qc3 {[%emt 0:00:35]} 46. Rxe4 {[%emt 0:01:54]} a5 {[%emt 0:02:21]} 47. Qc7 {[%emt 0:02:13]} a4 {[%emt 0:00:28]} 48. bxa4 {[%emt 0:01:23]} Kg7 {[%emt 0:00:24]} 49. Qd6 $18 {[%emt 0:00:31]} Qf6 {[%emt 0:02:56]} 50. Qxf6+ {[%emt 0:00:41]} Kxf6 {[%emt 0:00:02]} 51. Re8 {[%emt 0:00:07]} 1-0

[Event "WYCC 2018 O16"]
[Site "Halkidiki"]
[Date "2018.10.24"]
[Round "6"]
[White "Katopodis, Dimitrios"]
[Black "Carlsson, Ludvig"]
[Result "1/2-1/2"]
[ECO "B06"]
[WhiteElo "2310"]
[BlackElo "2058"]
[Annotator "NA"]
[PlyCount "67"]
[EventDate "2018.10.20"]
[EventType "swiss"]
[EventCountry "GRE"]
[SourceTitle "playchess.com"]
[Source "ChessBase"]
[SourceQuality "1"]
[TimeControl "40/5400+30:1800+30"]

1. d4 {[%emt 0:00:00]} g6 {[%emt 0:00:00]} 2. e4 {[%emt 0:00:00]} Bg7 {[%emt 0:00:45]} 3. c4 {[%emt 0:01:25]} c5 {[%emt 0:00:59]} 4. d5 {[%emt 0:00:40]} d6 {[%emt 0:00:14]} 5. Nc3 {[%emt 0:00:43]} Nf6 {[%emt 0:01:03]} 6. h3 {[%emt 0:02:50]} e6 {[%emt 0:00:32]} 7. Be3 {[%emt 0:04:16]} O-O {[%emt 0:02:09]} 8. Nf3 {[%emt 0:03:41]} exd5 {[%emt 0:08:03]} 9. exd5 {[%emt 0:01:22]} Re8 {[%emt 0:06:16]} 10. Bd3 {[%emt 0:00:40]} Rxe3+ {[%emt 0:01:21] E90: King's Indian: Classical: Early deviations and 6 h3} 11. fxe3 {[%emt 0:00:11]} Qe7 {[%emt 0:00:05]} 12. Qe2 {[%emt 0:05:36]} (12. O-O Nbd7 13. Qe2 b6 14. Bc2 Nh5 15. Rfe1 Ne5 16. g4 Nxf3+ 17. Qxf3 Nf6 18. Ba4 {1-0 (57) Navara,D (2737)-Morozevich,A (2675) Biel 2017}) 12... Nh5 {[%emt 0:10:09] LiveBook: 3 Games} (12... Nbd7 $142) 13. Qf2 {[%emt 0:08:19]} Nd7 {[%emt 0:03:33]} 14. O-O {[%emt 0:02:22]} Ne5 {[%emt 0:00:28]} 15. Be2 {[%emt 0:04:17] [#]} Nf6 $146 {[%emt 0:02:30]} ({Predecessor:} 15... Nxf3+ 16. Bxf3 Nf6 17. Qh4 Nxd5 18. Qxe7 Nxe7 19. Rad1 Be5 20. Nd5 {½-½ (20) Babula,V (2545)-Indjic,A (2576) Hungary 2016}) 16. Nxe5 {[%emt 0:00:41]} Qxe5 {[%emt 0:00:14]} 17. Qf4 {[%emt 0:00:54]} Qe7 {[%emt 0:00:36]} 18. Rae1 {[%emt 0:06:57]} Nd7 {[%emt 0:05:27]} 19. Ne4 {[%emt 0:06:00]} Be5 {[%emt 0:05:56]} 20. Qf2 {[%emt 0:04:25]} f5 {[%emt 0:05:37]} 21. Nc3 {[%emt 0:01:08]} h5 {[%emt 0:06:13]} 22. g4 {[%emt 0:03:18]} h4 {[%emt 0:01:11]} 23. gxf5 {[%emt 0:03:10]} Bg3 {[%emt 0:00:20]} 24. Qg2 {[%emt 0:03:23]} Qxe3+ {[%emt 0:01:21]} 25. Kh1 {[%emt 0:00:32]} Ne5 {[%emt 0:01:25]} 26. Qe4 {[%emt 0:13:14]} Qg5 {[%emt 0:04:52]} 27. Bg4 {[%emt 0:01:33]} gxf5 {[%emt 0:14:24]} 28. Bxf5 {[%emt 0:00:32]} Bxe1 {[%emt 0:00:16]} 29. Qxe1 {[%emt 0:04:06]} Bxf5 {[%emt 0:00:07]} 30. Rg1 {[%emt 0:00:27]} Bg4 {[%emt 0:00:39]} 31. Ne4 {[%emt 0:04:19]} Qf4 {[%emt 0:01:37]} 32. Nf2 {[%emt 0:04:15]} Qxc4 {[%emt 0:02:53]} 33. Nxg4 {[%emt 0:02:20]} Qxd5+ {[%emt 0:00:44]} 34. Rg2 $15 {[%emt 0:00:16]} 1/2-1/2

[Event "WYCC 2018 O16"]
[Site "Halkidiki"]
[Date "2018.10.24"]
[Round "6"]
[White "Travadon, Loic"]
[Black "Triantos, Konstantinos"]
[Result "1-0"]
[ECO "B66"]
[WhiteElo "2293"]
[BlackElo "2002"]
[Annotator "NA"]
[PlyCount "97"]
[EventDate "2018.10.20"]
[EventType "swiss"]
[EventCountry "GRE"]
[SourceTitle "playchess.com"]
[Source "ChessBase"]
[SourceQuality "1"]
[TimeControl "40/5400+30:1800+30"]

1. e4 {[%emt 0:00:09]} c5 {[%emt 0:00:00]} 2. Nc3 {[%emt 0:00:04]} d6 {[%emt 0:02:29]} 3. Nge2 {[%emt 0:01:52]} Nc6 {[%emt 0:00:36]} 4. d4 {[%emt 0:00:05]} cxd4 {[%emt 0:00:05]} 5. Nxd4 {[%emt 0:00:03]} Nf6 {[%emt 0:00:16]} 6. Bg5 {[%emt 0:00:05]} e6 {[%emt 0:00:06]} 7. Qd2 {[%emt 0:00:04]} a6 {[%emt 0:00:04]} 8. Nxc6 {[%emt 0:00:03]} bxc6 {[%emt 0:00:06]} 9. O-O-O {[%emt 0:00:03]} h6 {[%emt 0:03:52]} 10. Bf4 {[%emt 0:00:07]} d5 {[%emt 0:00:31]} 11. Qe3 {[%emt 0:00:08]} Bb4 {[%emt 0:00:07]} 12. Be2 {[%emt 0:00:08] B66: Sicilian: Richter-Rauzer: 7...a6 8 0-0-0 h6} O-O {[%emt 0:00:23]} 13. e5 {[%emt 0:00:10]} Nh7 {[%emt 0:00:04]} (13... Nd7 14. Qg3 Kh8 15. Qh3 Kg8 16. Rd3 Be7 17. Rg3 Bh4 18. Bxh6 g6 19. Rg4 Bxf2 20. Rf1 Bc5 21. Bg5 Be7 22. Bxe7 Qxe7 23. Qh6 Nxe5 24. Rh4 {1-0 (24) Wang,H (2709)-Ivanchuk,V (2726) Huaian 2017}) 14. Ne4 {[%emt 0:01:00]} f5 {[%emt 0:01:11] LiveBook: 5 Games} 15. exf6 {[%emt 0:00:23]} Nxf6 {[%emt 0:00:10]} 16. Nxf6+ {[%emt 0:00:06]} Qxf6 {[%emt 0:00:06]} 17. Be5 {[%emt 0:00:14]} Bc5 {[%emt 0:00:57]} 18. Bxf6 {[%emt 0:19:13]} Bxe3+ {[%emt 0:00:32]} 19. fxe3 {[%emt 0:00:01]} Rxf6 {[%emt 0:01:08]} 20. e4 $146 {[%emt 0:01:19]} Bb7 {[%emt 0:12:09]} 21. Bf3 {[%emt 0:00:22]} Rd8 {[%emt 0:03:07]} 22. exd5 {[%emt 0:01:38]} exd5 {[%emt 0:04:44]} 23. Rhe1 {[%emt 0:00:19]} Kf7 {[%emt 0:04:07]} 24. Re3 {[%emt 0:00:09]} Bc8 {[%emt 0:09:22]} 25. Rd4 {[%emt 0:02:10]} g6 {[%emt 0:08:46]} 26. Kd2 {[%emt 0:03:25]} Rf5 {[%emt 0:07:06]} 27. Rc3 {[%emt 0:00:25]} Rf6 {[%emt 0:02:26]} 28. Rc5 {[%emt 0:02:07]} h5 {[%emt 0:01:12]} 29. c4 {[%emt 0:02:50]} Rfd6 {[%emt 0:01:33]} 30. cxd5 {[%emt 0:00:10]} cxd5 {[%emt 0:00:02]} 31. Rcxd5 {[%emt 0:00:56]} Rxd5 {[%emt 0:09:57]} 32. Rxd5 {[%emt 0:00:01]} Re8 {[%emt 0:00:19]} 33. Rc5 {[%emt 0:00:20]} Be6 {[%emt 0:01:07]} 34. b3 {[%emt 0:00:09]} Rd8+ {[%emt 0:02:16]} 35. Kc3 {[%emt 0:00:07]} Re8 {[%emt 0:01:55]} 36. Rc7+ {[%emt 0:00:08]} Kf6 {[%emt 0:00:33]} 37. Rc6 {[%emt 0:00:04]} Rc8 {[%emt 0:00:10]} 38. Rxc8 {[%emt 0:00:08]} Bxc8 {[%emt 0:00:02]} 39. Kd4 {[%emt 0:00:15]} Kg5 {[%emt 0:01:49]} 40. Be4 {[%emt 0:00:00]} h4 {[%emt 0:00:00]} 41. b4 {[%emt 0:00:31]} Bd7 {[%emt 0:00:33]} 42. Bd3 {[%emt 0:00:11]} Bc6 {[%emt 0:00:32]} 43. Bxa6 {[%emt 0:00:21]} Bxg2 {[%emt 0:00:07]} 44. Bd3 {[%emt 0:00:29]} Kg4 {[%emt 0:18:28]} 45. b5 {[%emt 0:00:29]} g5 {[%emt 0:01:13]} 46. b6 {[%emt 0:00:38]} Bb7 {[%emt 0:00:31]} 47. Be4 {[%emt 0:00:36]} Ba6 {[%emt 0:08:22]} 48. Bg2 {[%emt 0:00:06]} h3 {[%emt 0:01:16]} 49. Be4 {[%emt 0:00:16]} 1-0